[Event "*** Titled Tuesday 3|2 Blitz"]
[Site "Chess.com"]
[Date "2016.09.06"]
[Round "5"]
[White "DeviatkinAndrey"]
[Black "Alexander_Donchenko"]
[Result "1-0"]
[WhiteElo "2617"]
[BlackElo "2503"]
[TimeControl "180+2"]
[EndTime "12:03:43 PDT"]
[Termination "DeviatkinAndrey won by resignation"]

1. e4 {[%clk 0:02:56.8]} 1... c5 {[%clk 0:03:00.9]} 2. c3 {[%clk 0:02:57.4]}
2... d5 {[%clk 0:03:02.1]} 3. exd5 {[%clk 0:02:55.4]} 3... Qxd5 {[%clk 0:03:04]}
4. d4 {[%clk 0:02:56.8]} 4... g6 {[%clk 0:03:05.7]} 5. dxc5 {[%clk 0:02:38.1]}
5... Qxc5 {[%clk 0:03:06.6]} 6. Be3 {[%clk 0:02:39.4]} 6... Qc7 {[%clk
0:03:07.8]} 7. Bxa7 {[%clk 0:02:40.6]} 7... Nc6 {[%clk 0:03:09.2]} 8. Be3 {[%clk
0:02:40.9]} 8... Nf6 {[%clk 0:03:10.6]} 9. h3 {[%clk 0:02:26.1]} 9... Bg7 {[%clk
0:03:11.8]} 10. Nf3 {[%clk 0:02:27.4]} 10... O-O {[%clk 0:03:12.3]} 11. Be2
{[%clk 0:02:21.7]} 11... Rd8 {[%clk 0:03:13.3]} 12. Qc1 {[%clk 0:02:14.7]} 12...
Nd5 {[%clk 0:03:12.3]} 13. O-O {[%clk 0:02:13.1]} 13... Nxe3 {[%clk 0:03:11.1]}
14. Qxe3 {[%clk 0:02:13.6]} 14... e5 {[%clk 0:03:10.4]} 15. Na3 {[%clk
0:02:13.6]} 15... h6 {[%clk 0:03:00.6]} 16. Nb5 {[%clk 0:02:11.8]} 16... Qe7
{[%clk 0:03:01]} 17. a3 {[%clk 0:01:28.4]} 17... Be6 {[%clk 0:03:00.8]} 18. Rfd1
{[%clk 0:01:28.6]} 18... f5 {[%clk 0:02:57.5]} 19. Rxd8+ {[%clk 0:01:26.2]}
19... Rxd8 {[%clk 0:02:59.4]} 20. Rd1 {[%clk 0:01:26.8]} 20... Rxd1+ {[%clk
0:02:54.2]} 21. Bxd1 {[%clk 0:01:27.7]} 21... Kh7 {[%clk 0:02:43.7]} 22. Be2
{[%clk 0:01:27.5]} 22... f4 {[%clk 0:02:41.9]} 23. Qe4 {[%clk 0:01:22.6]} 23...
Bf5 {[%clk 0:02:41.6]} 24. Qd5 {[%clk 0:01:23.6]} 24... e4 {[%clk 0:02:33.2]}
25. Nfd4 {[%clk 0:01:24.3]} 25... Nxd4 {[%clk 0:01:45.9]} 26. Nxd4 {[%clk
0:01:24.9]} 26... Bc8 {[%clk 0:01:43.4]} 27. Bc4 {[%clk 0:01:06.3]} 27... Qe8
{[%clk 0:01:34.8]} 28. Ne6 {[%clk 0:01:05.6]} 28... Bxe6 {[%clk 0:00:56]} 29.
Qxe6 {[%clk 0:01:06.2]} 29... Qxe6 {[%clk 0:00:57.4]} 30. Bxe6 {[%clk
0:01:06.9]} 30... b6 {[%clk 0:00:55.7]} 31. Kf1 {[%clk 0:00:58.6]} 31... Bf8
{[%clk 0:00:51]} 32. Ke2 {[%clk 0:00:57.7]} 32... Bc5 {[%clk 0:00:46.2]} 33. Bd5
{[%clk 0:00:54.1]} 33... e3 {[%clk 0:00:42.8]} 34. b4 {[%clk 0:00:52.6]} 34...
Bd6 {[%clk 0:00:37.6]} 35. fxe3 {[%clk 0:00:53.9]} 35... Be5 {[%clk 0:00:27.7]}
36. exf4 {[%clk 0:00:47.7]} 36... Bxc3 {[%clk 0:00:28.6]} 37. Kd3 {[%clk
0:00:45.9]} 37... Be1 {[%clk 0:00:27.5]} 38. g4 {[%clk 0:00:39.9]} 38... Kg7
{[%clk 0:00:26.3]} 39. Be4 {[%clk 0:00:35.9]} 39... Kf6 {[%clk 0:00:25]} 40. Kc4
{[%clk 0:00:35.9]} 40... Bd2 {[%clk 0:00:17.8]} 41. f5 {[%clk 0:00:29.4]} 41...
gxf5 {[%clk 0:00:19.3]} 42. Bxf5 {[%clk 0:00:24.9]} 42... Kg5 {[%clk 0:00:19.7]}
43. Bd7 {[%clk 0:00:23.7]} 43... Kh4 {[%clk 0:00:14.4]} 44. Kb5 {[%clk
0:00:23.3]} 44... Be3 {[%clk 0:00:14.7]} 45. a4 {[%clk 0:00:21.4]} 45... Kxh3
{[%clk 0:00:08.4]} 46. g5+ {[%clk 0:00:21.9]} 46... Kh4 {[%clk 0:00:10]} 47.
gxh6 {[%clk 0:00:22.7]} 47... Bxh6 {[%clk 0:00:10.9]} 48. Kxb6 {[%clk
0:00:24.1]} 1-0

[Event "*** Titled Tuesday 3|2 Blitz"]
[Site "Chess.com"]
[Date "2016.09.06"]
[Round "5"]
[White "WinnieTPooh"]
[Black "talaicito"]
[Result "0-1"]
[WhiteElo "1829"]
[BlackElo "1994"]
[TimeControl "180+2"]
[EndTime "12:04:02 PDT"]
[Termination "talaicito won by resignation"]

1. d4 {[%clk 0:03:00]} 1... e6 {[%clk 0:03:01.3]} 2. c4 {[%clk 0:03:00.9]} 2...
f5 {[%clk 0:03:02.8]} 3. g3 {[%clk 0:03:01.5]} 3... Nf6 {[%clk 0:03:04.3]} 4.
Bg2 {[%clk 0:03:02.8]} 4... Be7 {[%clk 0:03:05.5]} 5. Nf3 {[%clk 0:03:04.1]}
5... d6 {[%clk 0:03:07.1]} 6. O-O {[%clk 0:03:05.4]} 6... O-O {[%clk 0:03:08.7]}
7. Nc3 {[%clk 0:03:06.6]} 7... Ne4 {[%clk 0:03:10.1]} 8. Qc2 {[%clk 0:03:05]}
8... Nxc3 {[%clk 0:03:10.6]} 9. Qxc3 {[%clk 0:03:06.6]} 9... a5 {[%clk
0:03:11.2]} 10. b3 {[%clk 0:03:03.6]} 10... Bf6 {[%clk 0:03:12]} 11. Bb2 {[%clk
0:03:04.7]} 11... Nc6 {[%clk 0:03:13.5]} 12. Rad1 {[%clk 0:03:05.1]} 12... Qe8
{[%clk 0:03:09]} 13. Rfe1 {[%clk 0:03:05.6]} 13... e5 {[%clk 0:03:05.7]} 14.
dxe5 {[%clk 0:02:57.4]} 14... dxe5 {[%clk 0:03:04.8]} 15. e4 {[%clk 0:02:56.6]}
15... f4 {[%clk 0:02:56.2]} 16. Rd2 {[%clk 0:02:42.9]} 16... Be7 {[%clk
0:02:41.7]} 17. c5 {[%clk 0:02:14.2]} 17... Bf6 {[%clk 0:02:41.3]} 18. Red1
{[%clk 0:02:13.1]} 18... g5 {[%clk 0:02:40.1]} 19. Bf1 {[%clk 0:01:41.7]} 19...
g4 {[%clk 0:02:38.1]} 20. Ne1 {[%clk 0:01:40.3]} 20... Nd4 {[%clk 0:02:34.8]}
21. gxf4 {[%clk 0:01:30.4]} 21... Qh5 {[%clk 0:01:12.2]} 22. f5 {[%clk
0:00:57.9]} 22... Bg5 {[%clk 0:01:03.6]} 23. Rxd4 {[%clk 0:00:33.6]} 23... Bf4
{[%clk 0:01:04.2]} 24. h3 {[%clk 0:00:18.9]} 24... gxh3 {[%clk 0:00:56.3]} 25.
Rd8 {[%clk 0:00:11.5]} 25... Qg5+ {[%clk 0:00:53.8]} 26. Kh1 {[%clk 0:00:11.8]}
26... Rxd8 {[%clk 0:00:53.9]} 27. Rxd8+ {[%clk 0:00:11.3]} 27... Qxd8 {[%clk
0:00:54.8]} 28. Bxh3 {[%clk 0:00:10.6]} 28... Bd7 {[%clk 0:00:34.6]} 29. Nd3
{[%clk 0:00:11.5]} 29... Qh4 {[%clk 0:00:30.5]} 30. Nxf4 {[%clk 0:00:11.7]}
30... Qxf4 {[%clk 0:00:31.4]} 31. Qxe5 {[%clk 0:00:11.9]} 31... Qxe5 {[%clk
0:00:32.2]} 32. Bxe5 {[%clk 0:00:13.8]} 32... Bc6 {[%clk 0:00:33]} 33. f3 {[%clk
0:00:13.1]} 33... Rc8 {[%clk 0:00:32.7]} 34. f6 {[%clk 0:00:14.2]} 34... Re8
{[%clk 0:00:30.2]} 35. Bxc7 {[%clk 0:00:13.8]} 35... Kf7 {[%clk 0:00:30.6]} 36.
e5 {[%clk 0:00:13.3]} 36... Bxf3+ {[%clk 0:00:30.5]} 37. Kh2 {[%clk 0:00:14.6]}
37... Bd5 {[%clk 0:00:31.9]} 38. Kg3 {[%clk 0:00:14.9]} 38... Be6 {[%clk
0:00:31.8]} 39. Bg2 {[%clk 0:00:14.6]} 39... Rg8+ {[%clk 0:00:32.2]} 40. Kf2
{[%clk 0:00:15.8]} 40... Bc8 {[%clk 0:00:30.5]} 41. Bd5+ {[%clk 0:00:16.3]}
41... Be6 {[%clk 0:00:29.5]} 42. Bxb7 {[%clk 0:00:17.3]} 42... h5 {[%clk
0:00:29.4]} 43. Bxa5 {[%clk 0:00:18]} 43... h4 {[%clk 0:00:29.6]} 44. c6 {[%clk
0:00:19.2]} 44... Bd5 {[%clk 0:00:29.6]} 45. Bc8 {[%clk 0:00:14.9]} 45... Rxc8
{[%clk 0:00:26.7]} 46. c7 {[%clk 0:00:13.8]} 46... Rg8 {[%clk 0:00:23.2]} 47.
Bd2 {[%clk 0:00:10.9]} 47... h3 {[%clk 0:00:21.9]} 48. Bf4 {[%clk 0:00:12]}
48... Be6 {[%clk 0:00:16.9]} 49. Ke3 {[%clk 0:00:11.5]} 49... Ra8 {[%clk
0:00:15.8]} 50. a4 {[%clk 0:00:09.7]} 50... Bxb3 {[%clk 0:00:16.6]} 51. Kd4
{[%clk 0:00:10.6]} 0-1

[Event "*** Titled Tuesday 3|2 Blitz"]
[Site "Chess.com"]
[Date "2016.09.06"]
[Round "5"]
[White "mwpchess"]
[Black "Aygehovit1992"]
[Result "0-1"]
[WhiteElo "2432"]
[BlackElo "2413"]
[TimeControl "180+2"]
[EndTime "12:04:13 PDT"]
[Termination "Aygehovit1992 won on time"]

1. e4 {[%clk 0:03:02]} 1... d6 {[%clk 0:03:00.2]} 2. d4 {[%clk 0:03:01.8]} 2...
g6 {[%clk 0:03:01.6]} 3. Nf3 {[%clk 0:03:01.7]} 3... Bg7 {[%clk 0:03:02.8]} 4.
c3 {[%clk 0:03:02]} 4... Nc6 {[%clk 0:02:57]} 5. d5 {[%clk 0:03:01.8]} 5... Ne5
{[%clk 0:02:57.9]} 6. Nxe5 {[%clk 0:03:02]} 6... Bxe5 {[%clk 0:02:59.7]} 7. Bb5+
{[%clk 0:02:55.5]} 7... Bd7 {[%clk 0:02:59.9]} 8. Qa4 {[%clk 0:02:53.9]} 8... h5
{[%clk 0:02:45.3]} 9. Bxd7+ {[%clk 0:02:51.1]} 9... Qxd7 {[%clk 0:02:46.3]} 10.
Qxd7+ {[%clk 0:02:50.2]} 10... Kxd7 {[%clk 0:02:48.2]} 11. Be3 {[%clk
0:02:39.1]} 11... h4 {[%clk 0:02:42.3]} 12. Nd2 {[%clk 0:02:32.9]} 12... Nf6
{[%clk 0:02:41.7]} 13. f3 {[%clk 0:02:22.4]} 13... Nh5 {[%clk 0:02:24.2]} 14. a4
{[%clk 0:02:22.5]} 14... a6 {[%clk 0:02:23.1]} 15. Nc4 {[%clk 0:02:17.9]} 15...
Bf4 {[%clk 0:02:17.4]} 16. a5 {[%clk 0:02:14.1]} 16... Bxe3 {[%clk 0:02:13.1]}
17. Nxe3 {[%clk 0:02:14.1]} 17... Nf4 {[%clk 0:02:14.3]} 18. Rd1 {[%clk
0:02:08.2]} 18... b5 {[%clk 0:02:00.5]} 19. Kf2 {[%clk 0:02:04.7]} 19... Rab8
{[%clk 0:01:49.8]} 20. Nc2 {[%clk 0:02:04.4]} 20... g5 {[%clk 0:01:42.1]} 21. h3
{[%clk 0:02:03.1]} 21... Ng6 {[%clk 0:01:39.6]} 22. Nb4 {[%clk 0:02:00]} 22...
Ra8 {[%clk 0:01:40.3]} 23. Nc6 {[%clk 0:01:54.1]} 23... Rhf8 {[%clk 0:01:29.9]}
24. Rhe1 {[%clk 0:01:50.7]} 24... e5 {[%clk 0:01:20.1]} 25. b3 {[%clk
0:01:27.2]} 25... f5 {[%clk 0:01:20.6]} 26. c4 {[%clk 0:01:26.2]} 26... bxc4
{[%clk 0:01:17.7]} 27. bxc4 {[%clk 0:01:26.8]} 27... g4 {[%clk 0:01:18.3]} 28.
exf5 {[%clk 0:01:24.2]} 28... g3+ {[%clk 0:01:19.3]} 29. Kf1 {[%clk 0:01:18.8]}
29... Rxf5 {[%clk 0:01:21.2]} 30. Re4 {[%clk 0:01:13.7]} 30... Rf4 {[%clk
0:01:09.9]} 31. Rxf4 {[%clk 0:01:09.2]} 31... Nxf4 {[%clk 0:01:07.9]} 32. Rd2
{[%clk 0:01:06.1]} 32... Rf8 {[%clk 0:01:00.6]} 33. Rb2 {[%clk 0:01:02.3]} 33...
e4 {[%clk 0:00:52.8]} 34. Nb8+ {[%clk 0:00:46.3]} 34... Kd8 {[%clk 0:00:52.8]}
35. Nxa6 {[%clk 0:00:46.6]} 35... exf3 {[%clk 0:00:37.8]} 36. Rb8+ {[%clk
0:00:42.6]} 36... Ke7 {[%clk 0:00:39]} 37. Rxf8 {[%clk 0:00:43]} 37... fxg2+
{[%clk 0:00:40.9]} 38. Kg1 {[%clk 0:00:43.9]} 38... Kxf8 {[%clk 0:00:42.2]} 39.
Nxc7 {[%clk 0:00:44.9]} 39... Nxh3+ {[%clk 0:00:33]} 40. Kxg2 {[%clk 0:00:43]}
40... Nf4+ {[%clk 0:00:34.5]} 41. Kf3 {[%clk 0:00:42.8]} 41... Ke7 {[%clk
0:00:29.8]} 42. a6 {[%clk 0:00:23.9]} 42... g2 {[%clk 0:00:27.3]} 43. a7 {[%clk
0:00:17.1]} 43... g1=Q {[%clk 0:00:28]} 44. a8=Q {[%clk 0:00:18]} 44... Qg3+
{[%clk 0:00:12.7]} 45. Ke4 {[%clk 0:00:18.4]} 45... Ng6 {[%clk 0:00:13.1]} 46.
Qe8+ {[%clk 0:00:17.5]} 46... Kf6 {[%clk 0:00:14.1]} 47. Qe6+ {[%clk 0:00:16.1]}
47... Kg5 {[%clk 0:00:14.1]} 48. Qf5+ {[%clk 0:00:13.9]} 48... Kh6 {[%clk
0:00:15.3]} 49. Ne6 {[%clk 0:00:11.9]} 49... Qe1+ {[%clk 0:00:16.2]} 50. Kd3
{[%clk 0:00:09.3]} 50... Qb1+ {[%clk 0:00:16.8]} 0-1

[Event "*** Titled Tuesday 3|2 Blitz"]
[Site "Chess.com"]
[Date "2016.09.06"]
[Round "5"]
[White "ilya261991"]
[Black "E-Shaposhnikov"]
[Result "1-0"]
[WhiteElo "2488"]
[BlackElo "2652"]
[TimeControl "180+2"]
[EndTime "12:04:32 PDT"]
[Termination "ilya261991 won by resignation"]

1. d4 {[%clk 0:03:02]} 1... Nf6 {[%clk 0:02:57.8]} 2. c4 {[%clk 0:03:02.1]} 2...
e6 {[%clk 0:02:58.9]} 3. Nc3 {[%clk 0:03:02]} 3... Bb4 {[%clk 0:02:59.4]} 4. e3
{[%clk 0:03:02.9]} 4... c5 {[%clk 0:02:58.6]} 5. Bd3 {[%clk 0:02:59.3]} 5... Nc6
{[%clk 0:02:59]} 6. Nf3 {[%clk 0:02:57.1]} 6... Bxc3+ {[%clk 0:02:59.1]} 7. bxc3
{[%clk 0:02:58]} 7... d6 {[%clk 0:03:01]} 8. O-O {[%clk 0:02:56.8]} 8... e5
{[%clk 0:03:01.6]} 9. d5 {[%clk 0:02:57.4]} 9... Ne7 {[%clk 0:03:02.2]} 10. e4
{[%clk 0:02:58.5]} 10... h6 {[%clk 0:03:02.3]} 11. Ne1 {[%clk 0:02:30.9]} 11...
g5 {[%clk 0:03:00.9]} 12. Rb1 {[%clk 0:02:31]} 12... Ng6 {[%clk 0:03:00.8]} 13.
Nc2 {[%clk 0:02:31.5]} 13... Nf4 {[%clk 0:02:40.2]} 14. Ne3 {[%clk 0:02:28.3]}
14... Kf8 {[%clk 0:02:32.4]} 15. Bc2 {[%clk 0:02:23]} 15... h5 {[%clk
0:02:29.6]} 16. g3 {[%clk 0:02:20.9]} 16... Nh3+ {[%clk 0:02:26.1]} 17. Kg2
{[%clk 0:02:20.6]} 17... h4 {[%clk 0:02:15.6]} 18. f3 {[%clk 0:02:07.2]} 18...
Nh5 {[%clk 0:02:12.2]} 19. Nf5 {[%clk 0:01:56.9]} 19... hxg3 {[%clk 0:02:04.7]}
20. hxg3 {[%clk 0:01:52.8]} 20... N5f4+ {[%clk 0:02:01.4]} 21. Bxf4 {[%clk
0:01:20.5]} 21... gxf4 {[%clk 0:02:00.3]} 22. Rh1 {[%clk 0:01:19.6]} 22... Qg5
{[%clk 0:01:48.1]} 23. g4 {[%clk 0:01:20.5]} 23... Bxf5 {[%clk 0:01:41.2]} 24.
exf5 {[%clk 0:01:20]} 24... Qh6 {[%clk 0:01:42]} 25. Rh2 {[%clk 0:01:16.5]}
25... Kg7 {[%clk 0:01:29.5]} 26. Qh1 {[%clk 0:01:10.6]} 26... Qf6 {[%clk
0:01:29.7]} 27. Rxh3 {[%clk 0:00:49.6]} 27... Rxh3 {[%clk 0:01:29.4]} 28. Qxh3
{[%clk 0:00:50.8]} 28... Rh8 {[%clk 0:01:31]} 29. g5 {[%clk 0:00:52.2]} 29...
Qxg5+ {[%clk 0:01:32]} 30. Qg4 {[%clk 0:00:52.8]} 30... Qxg4+ {[%clk 0:01:17.7]}
31. fxg4 {[%clk 0:00:53.6]} 31... b6 {[%clk 0:01:19.6]} 32. Be4 {[%clk
0:00:54.2]} 32... Kf6 {[%clk 0:01:12]} 33. Rh1 {[%clk 0:00:54.5]} 33... Rxh1
{[%clk 0:01:03.3]} 34. Kxh1 {[%clk 0:00:55]} 34... Kg5 {[%clk 0:01:05.2]} 35.
Bf3 {[%clk 0:00:54]} 35... e4 {[%clk 0:01:00.1]} 36. Bxe4 {[%clk 0:00:54.8]}
36... Kxg4 {[%clk 0:01:02]} 37. Kg2 {[%clk 0:00:55.8]} 37... f6 {[%clk
0:01:00.8]} 38. Kf2 {[%clk 0:00:56.3]} 38... f3 {[%clk 0:00:58.8]} 39. Bc2
{[%clk 0:00:56.6]} 39... Kf4 {[%clk 0:00:59.3]} 40. Bd3 {[%clk 0:00:56.5]} 40...
Kg4 {[%clk 0:00:59.6]} 41. Be4 {[%clk 0:00:53.5]} 41... Kf4 {[%clk 0:00:59.6]}
42. Bxf3 {[%clk 0:00:54.7]} 42... Kxf5 {[%clk 0:01:01.2]} 43. Ke3 {[%clk
0:00:56.2]} 43... Kg5 {[%clk 0:00:55.7]} 44. Bd1 {[%clk 0:00:57.1]} 44... Kf5
{[%clk 0:00:56.5]} 45. Bc2+ {[%clk 0:00:57.7]} 45... Kg4 {[%clk 0:00:57]} 46.
Bd1+ {[%clk 0:00:59]} 46... Kf5 {[%clk 0:00:53.1]} 47. Kf3 {[%clk 0:01:00]}
47... Ke5 {[%clk 0:00:53.8]} 48. Bc2 {[%clk 0:01:00.9]} 48... b5 {[%clk
0:00:48.2]} 49. cxb5 {[%clk 0:00:52.1]} 49... Kxd5 {[%clk 0:00:48.9]} 50. a4
{[%clk 0:00:52.3]} 50... Kc4 {[%clk 0:00:47.1]} 51. Bd1 {[%clk 0:00:49.4]} 51...
Kd5 {[%clk 0:00:31.4]} 52. Ke3 {[%clk 0:00:49.4]} 52... c4 {[%clk 0:00:32.1]}
53. Bf3+ {[%clk 0:00:49.9]} 53... Kc5 {[%clk 0:00:33.2]} 54. Ke4 {[%clk
0:00:48.6]} 54... d5+ {[%clk 0:00:31.6]} 55. Ke3 {[%clk 0:00:49.5]} 55... f5
{[%clk 0:00:32.8]} 56. Bg2 {[%clk 0:00:50.3]} 56... f4+ {[%clk 0:00:26.6]} 57.
Kxf4 {[%clk 0:00:51.2]} 57... d4 {[%clk 0:00:28.5]} 58. cxd4+ {[%clk 0:00:52.2]}
58... Kxd4 {[%clk 0:00:30.4]} 59. a5 {[%clk 0:00:49.9]} 59... c3 {[%clk
0:00:24.5]} 60. Be4 {[%clk 0:00:49.8]} 60... Kc5 {[%clk 0:00:16.3]} 61. b6
{[%clk 0:00:49.9]} 61... axb6 {[%clk 0:00:08.9]} 62. a6 {[%clk 0:00:50.6]} 62...
c2 {[%clk 0:00:09.1]} 63. Bxc2 {[%clk 0:00:51.3]} 63... Kc6 {[%clk 0:00:11]} 64.
Be4+ {[%clk 0:00:50.8]} 1-0

[Event "*** Titled Tuesday 3|2 Blitz"]
[Site "Chess.com"]
[Date "2016.09.06"]
[Round "5"]
[White "Alexander_Moskalenko"]
[Black "DanielNaroditsky"]
[Result "1-0"]
[WhiteElo "2644"]
[BlackElo "2758"]
[TimeControl "180+2"]
[EndTime "12:04:49 PDT"]
[Termination "Alexander_Moskalenko won by resignation"]

1. c4 {[%clk 0:03:02]} 1... e5 {[%clk 0:03:00.8]} 2. g3 {[%clk 0:03:02.7]} 2...
Bc5 {[%clk 0:03:01.6]} 3. Bg2 {[%clk 0:03:04]} 3... Nc6 {[%clk 0:03:03]} 4. Nc3
{[%clk 0:03:05.6]} 4... a6 {[%clk 0:03:04.2]} 5. e3 {[%clk 0:03:07]} 5... Ba7
{[%clk 0:03:05.4]} 6. Nge2 {[%clk 0:03:08.6]} 6... d6 {[%clk 0:03:06.9]} 7. a3
{[%clk 0:03:06.5]} 7... h5 {[%clk 0:03:05.4]} 8. h3 {[%clk 0:03:07.4]} 8... h4
{[%clk 0:02:59.3]} 9. g4 {[%clk 0:03:08.8]} 9... f5 {[%clk 0:03:01]} 10. gxf5
{[%clk 0:03:09.1]} 10... Bxf5 {[%clk 0:03:02.9]} 11. d3 {[%clk 0:03:09.5]} 11...
Nf6 {[%clk 0:02:56.7]} 12. b4 {[%clk 0:03:05.5]} 12... Qd7 {[%clk 0:02:57.9]}
13. Nd5 {[%clk 0:03:04.9]} 13... Nd8 {[%clk 0:02:45.3]} 14. Bb2 {[%clk
0:03:03.7]} 14... c6 {[%clk 0:02:45.2]} 15. Ndc3 {[%clk 0:02:51.8]} 15... Rh6
{[%clk 0:02:46.1]} 16. d4 {[%clk 0:02:45]} 16... Rg6 {[%clk 0:02:20]} 17. dxe5
{[%clk 0:02:40.1]} 17... dxe5 {[%clk 0:02:07.4]} 18. Qxd7+ {[%clk 0:02:40.6]}
18... Nxd7 {[%clk 0:02:09.3]} 19. Be4 {[%clk 0:02:40.8]} 19... Rf6 {[%clk
0:01:58.6]} 20. Bxf5 {[%clk 0:02:41]} 20... Rxf5 {[%clk 0:02:00.5]} 21. Ne4
{[%clk 0:02:38.9]} 21... Nf7 {[%clk 0:02:02.1]} 22. c5 {[%clk 0:02:38.4]} 22...
O-O-O {[%clk 0:01:58.8]} 23. N2c3 {[%clk 0:02:35.2]} 23... Nf6 {[%clk
0:01:58.6]} 24. Ke2 {[%clk 0:02:34.5]} 24... Bb8 {[%clk 0:01:46.4]} 25. Rhg1
{[%clk 0:02:35.6]} 25... g5 {[%clk 0:01:39.1]} 26. Nxf6 {[%clk 0:02:36.4]} 26...
Rxf6 {[%clk 0:01:41]} 27. Ne4 {[%clk 0:02:38.1]} 27... Rg6 {[%clk 0:01:36.1]}
28. Rg4 {[%clk 0:02:24.4]} 28... Bc7 {[%clk 0:01:37.2]} 29. Rag1 {[%clk
0:02:24.5]} 29... Rdg8 {[%clk 0:01:38.9]} 30. Nd2 {[%clk 0:02:17.5]} 30... Nh6
{[%clk 0:01:37.5]} 31. Re4 {[%clk 0:02:17.2]} 31... g4 {[%clk 0:01:38.8]} 32.
hxg4 {[%clk 0:02:15.7]} 32... Rxg4 {[%clk 0:01:39.7]} 33. Rh1 {[%clk 0:02:13.5]}
33... Nf5 {[%clk 0:01:37.2]} 34. Kf3 {[%clk 0:02:09.5]} 34... R4g5 {[%clk
0:01:17.2]} 35. Bxe5 {[%clk 0:02:03]} 35... Bd8 {[%clk 0:01:06.5]} 36. Bf4
{[%clk 0:01:55.4]} 36... Rh5 {[%clk 0:01:07]} 37. Nc4 {[%clk 0:01:45.7]} 37...
h3 {[%clk 0:01:00.2]} 38. Ke2 {[%clk 0:01:47.1]} 38... Bc7 {[%clk 0:00:53.6]}
39. Bxc7 {[%clk 0:01:33.9]} 39... Kxc7 {[%clk 0:00:54.9]} 40. Re5 {[%clk
0:01:01.5]} 40... h2 {[%clk 0:00:51.6]} 41. Kf1 {[%clk 0:00:56.5]} 41... Rd8
{[%clk 0:00:44.7]} 42. Rxf5 {[%clk 0:00:33.6]} 42... Rxf5 {[%clk 0:00:46.6]} 43.
Rxh2 {[%clk 0:00:34.7]} 43... Rd1+ {[%clk 0:00:44.8]} 44. Ke2 {[%clk 0:00:35.2]}
44... Rc1 {[%clk 0:00:46]} 45. Rh7+ {[%clk 0:00:35.4]} 45... Kd8 {[%clk
0:00:44]} 46. Nd6 {[%clk 0:00:31.5]} 46... Rc2+ {[%clk 0:00:44.7]} 47. Kd3
{[%clk 0:00:32]} 47... Rfxf2 {[%clk 0:00:46.4]} 48. Nxb7+ {[%clk 0:00:32.2]}
48... Kc8 {[%clk 0:00:46.7]} 49. Nd6+ {[%clk 0:00:33.7]} 49... Kd8 {[%clk
0:00:48.3]} 50. Ra7 {[%clk 0:00:33.8]} 50... Ra2 {[%clk 0:00:43.3]} 51. Rxa6
{[%clk 0:00:33.6]} 51... Kd7 {[%clk 0:00:45.2]} 52. Ke4 {[%clk 0:00:25.6]} 52...
Rfe2 {[%clk 0:00:44.3]} 53. Nc4 {[%clk 0:00:26.6]} 53... Kc7 {[%clk 0:00:32.8]}
54. Ne5 {[%clk 0:00:25.7]} 54... Kb7 {[%clk 0:00:34]} 55. Rb6+ {[%clk
0:00:27.1]} 55... Ka8 {[%clk 0:00:31.7]} 56. Nxc6 {[%clk 0:00:28]} 56... Rxe3+
{[%clk 0:00:33]} 57. Kxe3 {[%clk 0:00:16.1]} 57... Rxa3+ {[%clk 0:00:23.8]} 58.
Ke4 {[%clk 0:00:13.6]} 58... Re3+ {[%clk 0:00:24.5]} 59. Kd5 {[%clk 0:00:15]}
59... Rd3+ {[%clk 0:00:25.2]} 60. Nd4 {[%clk 0:00:16.3]} 60... Rh3 {[%clk
0:00:26.5]} 61. Kc4 {[%clk 0:00:17.5]} 61... Rh4 {[%clk 0:00:26.7]} 62. b5
{[%clk 0:00:18.9]} 62... Ka7 {[%clk 0:00:27.6]} 63. Rd6 {[%clk 0:00:20.5]} 63...
Rh7 {[%clk 0:00:28.4]} 64. Kb4 {[%clk 0:00:19.5]} 64... Ka8 {[%clk 0:00:29.3]}
65. b6 {[%clk 0:00:19.4]} 65... Kb7 {[%clk 0:00:30]} 66. Kb5 {[%clk 0:00:21]}
66... Rh5 {[%clk 0:00:29.7]} 67. Rd7+ {[%clk 0:00:22.4]} 67... Ka8 {[%clk
0:00:31.3]} 68. Ra7+ {[%clk 0:00:22.3]} 1-0